bitfinex-derivatives/quotes_BNBF0:USTF0_20250413
["timestamp","ask_amount","ask_price","bid_price","bid_amount"]
[1744532620160,0.30995175,593.72,593.06,4.385]
[1744532620565,0.30995175,593.76,593.06,4.385]
[1744532620764,0.33683075,593.77,593.06,4.385]
[1744532620964,0.30994921,593.75,593.06,4.385]
[1744532621165,0.30994921,593.74,593.06,4.385]
[1744532621465,0.30994921,593.73,593.06,4.385]
[1744532621665,0.30995114,593.72,593.06,4.385]
[1744532626470,0.3099574,593.71,593.06,4.385]
[1744532626668,0.3099574,593.76,593.06,4.385]
[1744532626867,0.3099574,593.75,593.06,4.385]
[1744532627065,0.3099574,593.76,593.06,4.385]
[1744532627264,0.3099574,593.75,593.06,4.385]
[1744532627465,0.3099574,593.74,593.06,4.385]
[1744532627665,0.3099574,593.73,593.06,4.385]
[1744532629570,0.30996184,593.72,593.06,4.385]
[1744532629770,0.30996184,593.76,593.06,4.385]
[1744532629968,0.30996184,593.75,593.06,4.385]
[1744532630166,0.30996184,593.76,593.06,4.385]
[1744532630668,0.2934109,593.75,593.06,4.385]
[1744532630971,0.30996184,593.74,593.06,4.385]
[1744532631271,0.30996184,593.73,593.06,4.385]
[1744532631472,0.30996184,593.72,593.06,4.385]
[1744532631673,0.30996184,593.71,593.06,4.385]
[1744532631868,0.30996184,593.74,593.06,4.385]
[1744532632075,0.30996184,593.73,593.06,4.385]
[1744532632374,0.30996184,593.72,593.06,4.385]
[1744532632574,0.33683075,593.77,593.06,4.385]
[1744532632770,0.30995032,593.76,593.06,4.385]
[1744532632979,0.30995032,593.75,593.06,4.385]
[1744532633275,0.30995032,593.74,593.06,4.385]
[1744532633571,1.28407166,593.72,593.06,4.385]
[1744532633776,0.30995032,593.71,593.06,4.385]
[1744532633976,0.30995032,593.7,593.06,4.385]
[1744532634175,0.30995032,593.69,593.06,4.385]
[1744532634372,0.30995032,593.68,593.06,4.385]
[1744532634579,0.30995032,593.67,593.06,4.385]
[1744532634777,0.30995032,593.66,593.06,4.385]
[1744532634977,0.30995032,593.71,593.06,4.385]
[1744532635178,0.30995032,593.7,593.06,4.385]
[1744532635378,0.30995032,593.69,593.06,4.385]
[1744532635578,0.30995032,593.68,593.06,4.385]
[1744532635879,1.28407166,593.64,593.06,4.385]
[1744532636079,0.30995032,593.63,593.06,4.385]
[1744532636675,0.29341214,593.62,593.06,4.385]
[1744532636881,0.30995032,593.61,593.06,4.385]
[1744532638379,1.59402198,593.61,593.06,4.385]
[1744532638579,0.30995032,593.6,593.06,4.385]
[1744532639681,0.29341585,593.59,593.06,4.385]
[1744532639877,0.30995032,593.58,593.06,4.385]
[1744532640679,0.30993768,593.57,593.06,4.385]
[1744532640874,0.30993768,593.58,593.06,4.385]
[1744532641580,0.30993768,593.57,593.06,4.385]
[1744532641879,0.30993768,593.56,593.06,4.385]
[1744532642076,0.30993768,593.72,593.06,4.385]
[1744532642280,0.30993768,593.55,593.06,4.385]
[1744532642479,0.30993768,593.54,593.06,4.385]
[1744532642775,0.30993768,593.53,593.06,4.385]
[1744532644777,1.28407166,593.74,593.06,4.385]
[1744532645082,0.30993764,593.73,593.06,4.385]
[1744532645782,0.29337998,593.72,593.06,4.385]
[1744532645979,0.30993764,593.71,593.06,4.385]
[1744532646383,0.29337998,593.72,593.06,4.385]
[1744532646578,0.30990842,593.71,593.06,4.385]
[1744532647785,0.60328346,593.7,593.06,4.385]
[1744532647985,0.29337504,593.7,593.06,4.385]
[1744532648180,0.30989968,593.69,593.06,4.385]
[1744532649585,0.29337504,593.7,593.06,4.385]
[1744532649786,0.30989817,593.69,593.06,4.385]
[1744532650781,0.30989817,593.76,593.06,4.385]
[1744532651687,0.29335772,593.75,593.06,4.385]
[1744532651883,0.30989817,593.74,593.06,4.385]
[1744532653586,0.30989817,593.73,593.06,4.385]
[1744532653794,0.2933602,593.73,593.06,4.385]
[1744532653990,0.30989817,593.72,593.06,4.385]
[1744532654291,0.2933602,593.73,593.06,4.385]
[1744532654491,0.30985388,593.72,593.06,4.385]
[1744532656591,0.30985388,593.76,593.06,4.385]
[1744532657697,0.29335896,593.75,593.06,4.385]
[1744532657899,0.30985388,593.74,593.06,4.385]
[1744532659596,0.30985388,593.76,593.06,4.385]
[1744532659801,0.29335896,593.73,593.06,4.385]
[1744532660002,0.30985388,593.72,593.06,4.385]
[1744532662206,0.29335896,593.73,593.06,4.385]
[1744532662405,0.30982562,593.72,593.06,4.385]
[1744532665607,0.30982562,593.71,593.06,4.385]
[1744532665810,0.29334907,593.71,593.06,4.385]
[1744532666111,0.30982562,593.7,593.06,4.385]
[1744532667013,0.29334907,593.71,593.06,4.385]
[1744532667212,0.30982723,593.7,593.06,4.385]
[1744532668714,0.30982723,593.76,593.06,4.385]
[1744532668911,0.30982723,593.75,593.06,4.385]
[1744532669112,0.30982723,593.76,593.06,4.385]
[1744532669310,0.30982723,593.75,593.06,4.385]
[1744532669513,0.30982723,593.74,593.06,4.385]
[1744532669715,0.29334412,593.74,593.06,4.385]
[1744532669915,0.30982723,593.73,593.06,4.385]
[1744532670109,0.29334412,593.74,593.06,4.385]
[1744532670313,0.30982087,593.73,593.06,4.385]
[1744532671616,0.30982087,594.18,593.06,4.385]
[1744532671820,0.64642773,594.17,593.06,4.385]
[1744532672018,0.33660966,594.16,593.06,4.385]
[1744532672214,0.30982373,594.15,593.06,4.385]
[1744532672415,1.28407166,594.01,593.06,4.385]
[1744532672623,0.30982373,594.0,593.06,4.385]
[1744532672822,0.30982373,593.99,593.06,4.385]
[1744532673123,0.30982373,593.98,593.06,4.385]
[1744532673322,1.28407166,594.01,593.06,4.385]
[1744532673523,0.3098306,594.0,593.06,4.385]
[1744532673716,0.3098306,593.99,593.06,4.385]
[1744532673917,0.3098306,593.98,593.06,4.385]
[1744532674121,0.3098306,593.97,593.06,4.385]
[1744532674325,0.3098306,593.96,593.06,4.385]
[1744532674522,0.3098306,593.95,593.06,4.385]
[1744532674824,0.3098306,593.94,593.06,4.385]
[1744532675023,0.3098306,593.93,593.06,4.385]
[1744532675226,0.3098306,593.92,593.06,4.385]
[1744532675524,0.3098306,593.91,593.06,4.385]
[1744532675720,0.3098306,593.9,593.06,4.385]
[1744532675926,0.3098306,593.89,593.06,4.385]
[1744532676225,0.3098306,593.88,593.06,4.385]
[1744532676426,0.29329962,593.95,593.06,4.385]
[1744532676726,0.30981128,593.94,593.06,4.385]
[1744532676927,0.30981128,593.93,593.06,4.385]
[1744532677122,0.30981128,593.92,593.06,4.385]
[1744532677322,0.30981128,593.91,593.06,4.385]
[1744532677523,0.30981128,593.9,593.06,4.385]
[1744532677725,0.30981128,593.89,593.06,4.385]
[1744532678122,0.30981098,593.88,593.06,4.385]
[1744532678322,0.30981098,593.87,593.06,4.385]
[1744532678627,0.30981098,593.86,593.06,4.385]
[1744532678826,0.29330209,593.9,593.06,4.385]
[1744532678827,0.30981098,593.89,593.06,4.385]
[1744532679028,0.30981098,593.88,593.06,4.385]
[1744532679224,0.30981098,593.89,593.06,4.385]
[1744532679625,0.29330209,593.9,593.06,4.385]
[1744532679920,0.30981023,593.89,593.06,4.385]
[1744532680627,0.30981023,593.99,593.06,4.385]
[1744532680827,0.29330827,593.88,593.06,4.385]
[1744532681127,0.30980844,593.87,593.06,4.385]
[1744532681327,0.30980844,593.99,593.06,4.385]
[1744532681528,1.28407166,593.96,593.06,4.385]
[1744532681728,0.30980844,593.95,593.06,4.385]
[1744532681926,0.30980844,593.94,593.06,4.385]
[1744532682128,0.30980844,593.93,593.06,4.385]
[1744532682325,0.30980844,593.92,593.06,4.385]
[1744532682528,0.30980844,593.91,593.06,4.385]
[1744532682729,0.30980844,593.9,593.06,4.385]
[1744532682930,0.30980844,593.89,593.06,4.385]
[1744532683130,0.30980844,593.92,593.06,4.385]
[1744532683323,0.30980844,593.91,593.06,4.385]
[1744532683629,0.30980844,593.9,593.06,4.385]
[1744532683829,0.30980844,593.89,593.06,4.385]
[1744532684129,0.30980844,593.88,593.06,4.385]
[1744532684326,0.29330456,593.9,593.06,4.385]
[1744532684527,0.30981057,593.89,593.06,4.385]
[1744532686630,0.30981057,593.88,593.06,4.385]
[1744532686830,0.30981057,593.93,593.06,4.385]
[1744532687131,1.28407166,593.91,593.06,4.385]
[1744532687430,0.30981057,593.9,593.06,4.385]
[1744532687632,0.3098081,593.89,593.06,4.385]
[1744532687831,0.60311514,593.9,593.06,4.385]
[1744532688132,0.3098081,593.89,593.06,2.19]
[1744532689734,0.29330827,593.88,593.06,2.19]
[1744532689936,0.3098081,593.87,593.06,2.19]
[1744532690335,0.29330827,593.88,593.06,2.19]
[1744532690531,0.30980788,593.87,593.06,2.19]
[1744532690733,0.29330827,593.88,593.06,2.19]
[1744532690929,0.30980774,593.87,593.06,3.083]
[1744532691337,0.30980774,593.87,593.06,3.89]
[1744532692638,0.30980774,593.88,593.06,3.89]
[1744532692837,0.29331075,593.86,593.06,3.89]
[1744532693036,0.30980774,593.85,593.06,3.89]
[1744532693938,0.29331075,593.86,593.06,3.89]
[1744532694138,0.30981361,593.85,593.06,3.89]
[1744532694939,0.30981361,593.85,593.06,4.6]
[1744532695639,0.30981335,593.84,593.06,4.6]
[1744532695839,0.30981335,593.83,593.06,4.6]
[1744532697141,0.29331322,593.84,593.06,4.6]
[1744532697336,0.30981343,593.83,593.06,4.6]
[1744532698644,0.30981343,593.84,593.06,4.6]
[1744532698944,0.30981361,593.83,593.06,4.6]
[1744532699145,1.59388527,593.84,593.06,4.6]
[1744532699345,0.30981361,593.83,593.06,4.6]
[1744532699747,0.29331569,593.82,593.06,4.6]
[1744532699947,0.30981361,593.81,593.06,4.6]
[1744532701647,0.30981361,594.13,593.06,4.6]
[1744532701845,0.64644594,594.12,593.06,4.6]
[1744532702147,0.30981361,594.11,593.06,4.6]
[1744532702648,0.29328108,594.1,593.06,4.6]
[1744532702849,0.30981361,594.09,593.06,4.6]
[1744532704646,0.29328355,594.08,593.06,4.6]
[1744532705150,0.30981106,594.07,593.06,4.6]
[1744532707646,0.60309709,594.06,593.06,4.6]
[1744532707852,0.30981106,594.05,593.06,4.6]
[1744532710651,0.30981106,594.04,593.06,4.6]
[1744532710848,0.30981106,594.11,593.06,4.6]
[1744532711156,0.64645472,594.1,593.06,4.6]
[1744532711356,0.30981106,594.09,593.06,4.6]
[1744532711655,0.30981106,594.08,593.06,4.6]
[1744532712056,0.30981106,594.07,593.06,4.6]
[1744532712251,0.30981106,594.06,593.06,4.6]
[1744532712455,0.30981106,594.05,593.06,4.6]
[1744532712651,0.30982483,594.04,593.06,4.6]
[1744532712851,0.30982483,594.03,593.06,4.6]
[1744532713151,0.30982483,594.02,593.06,4.6]
[1744532713352,0.30982483,594.01,593.06,4.6]
[1744532713557,0.30982483,594.0,593.06,4.6]
[1744532713750,0.30982483,593.99,593.06,4.6]
[1744532714053,0.30982483,593.98,593.06,4.6]
[1744532714257,0.30982483,594.04,593.06,4.6]
[1744532714452,0.30982483,594.03,593.06,4.6]
[1744532714651,0.30982483,594.02,593.06,4.6]
[1744532714857,0.30982483,594.01,593.06,4.6]
[1744532715156,0.29330951,594.03,593.06,4.6]
[1744532715157,0.30982483,594.0,593.06,4.6]
[1744532715358,0.30982483,593.99,593.06,4.6]
[1744532715551,0.30982483,593.98,593.06,4.6]
[1744532715752,0.29330951,594.03,593.06,4.6]
[1744532715953,0.3098364,594.02,593.06,4.6]
[1744532716153,0.3098364,594.01,593.06,4.6]
[1744532716455,0.3098364,594.0,593.06,4.6]
[1744532716653,1.28407166,593.94,593.06,4.6]
[1744532716854,0.3098364,593.93,593.06,4.6]
[1744532718963,0.3098364,593.92,593.06,4.6]
[1744532719161,0.3098364,593.94,593.06,4.6]
[1744532719462,0.3098364,593.93,593.06,4.6]
[1744532719662,0.3098364,593.92,593.06,4.6]
[1744532719963,0.3098364,593.91,593.06,4.6]
[1744532720162,0.3098364,593.9,593.06,4.6]
[1744532720363,0.3098364,593.89,593.06,4.6]
[1744532720562,1.28407166,593.95,593.06,4.6]
[1744532720764,0.29332187,593.89,593.06,4.6]
[1744532720964,1.28407166,593.85,593.06,4.6]
[1744532721164,0.30983675,593.84,593.06,4.6]
[1744532721564,0.30983675,593.83,593.06,4.6]
[1744532721763,0.30983675,593.84,593.06,4.6]
[1744532722060,0.30983675,593.83,593.06,4.6]
[1744532722263,0.30984088,593.82,593.06,4.6]
[1744532722464,0.30984088,593.84,593.06,4.6]
[1744532722762,0.30984088,593.83,593.06,4.6]
[1744532723064,0.30984088,593.84,593.06,4.6]
[1744532723262,1.28407166,593.8,593.06,4.6]
[1744532723565,0.30984088,593.79,593.06,4.6]
[1744532723769,0.60319118,593.79,593.06,4.6]
[1744532724063,0.30984088,593.78,593.06,4.6]
[1744532725269,0.2933503,593.79,593.06,4.6]
[1744532725569,0.30983943,593.78,593.06,4.6]
[1744532725768,0.30983943,593.79,593.06,4.6]
[1744532726669,0.29335278,593.78,593.06,4.6]
[1744532727063,0.30983799,593.77,593.06,4.6]
[1744532727979,0.29335278,593.78,593.06,4.6]
[1744532728172,0.30983929,593.77,593.06,4.6]
[1744532728771,0.30983929,593.81,593.06,4.6]
[1744532728973,0.30983929,593.8,593.06,4.6]
[1744532729168,0.30983929,593.81,593.06,4.6]
[1744532729367,0.30983929,593.8,593.06,4.6]
[1744532729567,0.30983929,593.79,593.06,4.6]
[1744532729766,0.30983929,593.78,593.06,4.6]
[1744532729971,0.30983929,593.79,593.06,4.6]
[1744532730169,0.30984095,593.78,593.06,4.6]
[1744532730371,0.30984095,593.79,593.06,4.6]
[1744532730572,0.30984095,593.78,593.06,4.6]
[1744532730771,0.30984095,593.79,593.06,4.6]
[1744532730968,0.30984095,593.78,593.06,4.6]
[1744532731170,0.30984095,593.77,593.06,4.6]
[1744532731367,0.30984095,593.79,593.06,4.6]
[1744532731568,0.30984095,593.78,593.06,4.6]
[1744532731773,0.30984062,593.77,593.06,4.6]
[1744532731968,0.30984062,593.76,593.06,4.6]
[1744532732174,0.30984062,593.8,593.06,4.6]
[1744532732374,0.30984062,593.79,593.06,4.6]
[1744532732575,0.30984062,593.8,593.06,4.6]
[1744532732875,0.60319216,593.79,593.06,4.6]
[1744532733068,0.30984062,593.78,593.06,4.6]
[1744532734776,0.30984062,593.81,593.06,4.6]
[1744532734974,0.30984062,593.8,593.06,4.6]
[1744532735276,0.30984062,593.79,593.06,4.6]
[1744532735471,0.30984062,593.81,593.06,4.6]
[1744532735676,0.2933503,593.78,593.06,4.6]
[1744532735871,0.30984062,593.77,593.06,4.6]
[1744532737675,0.30984062,593.8,593.06,4.6]
[1744532737879,0.30984062,593.79,593.06,4.6]
[1744532738179,0.30984062,593.78,593.06,4.6]
[1744532738378,0.30984062,593.8,593.06,4.6]
[1744532738679,0.29335154,593.77,593.06,4.6]
[1744532738980,0.30984062,593.76,593.06,4.6]
[1744532740781,0.30984062,593.8,593.06,4.6]
[1744532740977,1.28407166,593.81,593.06,4.6]
[1744532741177,0.30983534,593.8,593.06,4.6]
[1744532741678,0.29335154,593.79,593.06,4.6]
[1744532741984,0.30983534,593.78,593.06,4.6]
[1744532742985,0.29335154,593.79,593.06,4.6]
[1744532743180,0.30983576,593.78,593.06,4.6]
[1744532743687,1.59390742,593.8,593.06,4.6]
[1744532743884,0.29334165,593.77,593.06,4.6]
[1744532744082,0.30983576,593.76,593.06,4.6]
[1744532746091,0.29334165,593.77,593.06,4.6]
[1744532746283,0.30981621,593.76,593.06,4.6]
[1744532746687,0.30981621,593.82,593.06,4.6]
[1744532746989,0.30981621,593.81,593.06,4.6]
[1744532747187,0.30981621,593.82,593.06,4.6]
[1744532747387,0.30981621,593.81,593.06,4.6]
[1744532747684,0.30981621,593.8,593.06,4.6]
[1744532747884,0.29333671,593.8,593.06,4.6]
[1744532748090,0.30981621,593.79,593.06,4.6]
[1744532749690,0.30981621,593.82,593.06,4.6]
[1744532749884,0.29334041,593.78,593.06,4.6]
[1744532750187,0.30981621,593.77,593.06,4.6]
[1744532752287,0.29334041,593.78,593.06,4.6]
[1744532752494,1.28407166,593.83,593.06,4.6]
[1744532752692,0.29332063,593.77,593.06,4.6]
[1744532754994,0.30976797,593.76,593.06,4.6]
[1744532755692,1.28407166,594.5,593.06,4.6]
[1744532755896,0.30975755,594.09,593.06,4.6]
[1744532756794,0.29326625,594.08,593.06,4.6]
[1744532756997,0.30975755,594.07,593.06,4.6]
[1744532757394,0.29326625,594.08,593.06,4.6]
[1744532757594,0.30975847,594.07,593.06,4.6]
[1744532758691,0.30975847,594.06,593.06,4.6]
[1744532758996,0.30975847,594.05,593.06,4.6]
[1744532761699,1.28407166,594.17,593.06,4.6]
[1744532761900,0.29326625,594.04,593.06,4.6]
[1744532762101,0.30975904,594.03,593.06,4.6]
[1744532763394,0.30975984,594.02,593.06,4.6]
[1744532763594,0.30975984,594.01,593.06,4.6]
[1744532763797,0.30975984,594.03,593.06,4.6]
[1744532763999,0.30975984,594.02,593.06,4.6]
[1744532764196,0.30975984,594.01,593.06,4.6]
[1744532764401,0.30975984,594.03,593.06,4.6]
[1744532764701,0.30975984,594.02,593.06,4.6]
[1744532764902,1.28407166,594.19,593.06,4.6]
[1744532765096,0.30975932,594.09,593.06,4.6]
[1744532765801,0.29326625,594.08,593.06,4.6]
[1744532766001,0.30975932,594.07,593.06,4.6]
[1744532766502,0.29326625,594.08,593.06,4.6]
[1744532766802,0.30976187,594.07,593.06,4.6]
[1744532767705,0.30976187,594.09,593.06,4.6]
[1744532767903,0.30976187,594.08,593.06,4.6]
[1744532768103,0.30976187,594.09,593.06,4.6]
[1744532768403,1.28407166,594.22,593.06,4.6]
[1744532768404,0.30976187,594.08,593.06,4.6]
[1744532768599,0.30976187,594.07,593.06,4.6]
[1744532768799,0.30976187,594.06,593.06,4.6]
[1744532769004,0.30976187,594.05,593.06,4.6]
[1744532769205,0.30976187,594.04,593.06,4.6]
[1744532769406,0.30976187,594.03,593.06,4.6]
[1744532769602,0.30976187,594.02,593.06,4.6]
[1744532769805,0.30976187,594.01,593.06,4.6]
[1744532770003,0.30976187,594.07,593.06,4.6]
[1744532770905,0.30976187,594.06,593.06,4.6]
[1744532771106,0.29328355,594.08,593.06,4.6]
[1744532771107,0.30976187,594.07,593.06,4.6]
[1744532771306,0.30976187,594.06,593.06,4.6]
[1744532771507,0.30976187,594.05,593.06,4.6]
[1744532771707,0.30976187,594.04,593.06,4.6]
[1744532771904,0.30976187,594.03,593.06,4.6]
[1744532772101,0.30976187,594.06,593.06,4.6]
[1744532772302,0.30976187,594.05,593.06,4.6]
[1744532772505,0.30976187,594.04,593.06,4.6]
[1744532772808,0.30976187,594.03,593.06,4.6]
[1744532773108,0.30976187,594.02,593.06,4.6]
[1744532773305,0.30976187,594.01,593.06,4.6]
[1744532773510,0.30976187,594.06,593.06,4.6]
[1744532773810,0.30976187,594.05,593.06,4.6]
[1744532774012,0.30976187,594.04,593.06,4.045]
[1744532774311,0.30976187,594.03,593.06,4.045]
[1744532774510,0.30976187,594.02,593.06,4.045]
[1744532774710,0.30976187,594.01,593.06,4.045]
[1744532774913,0.30976187,594.0,593.06,4.045]
[1744532775111,0.30976187,593.99,593.06,4.045]
[1744532775312,0.30976187,593.98,593.06,4.045]
[1744532775507,0.30976187,593.97,593.06,4.045]
[1744532775712,0.30976187,593.96,593.06,4.045]
[1744532776011,1.28407166,593.94,593.06,4.045]
[1744532776211,0.30976187,593.93,593.06,4.045]
[1744532776411,0.30976187,593.92,593.06,4.045]
[1744532776612,0.30976187,593.91,593.06,4.045]
[1744532776813,0.30976187,593.9,593.06,4.045]
[1744532777012,0.30976187,593.93,593.06,4.045]
[1744532777313,0.30976187,593.92,593.06,4.045]
[1744532777514,0.30976187,593.91,593.06,4.045]
[1744532777714,0.29332311,593.91,593.06,4.045]
[1744532777914,0.30976187,593.9,593.06,4.045]
[1744532779718,0.30976187,593.98,593.06,4.045]
[1744532779920,0.29332805,593.89,593.06,4.045]
[1744532780119,0.30976187,593.88,593.06,4.045]
[1744532780319,0.30976187,593.98,593.06,4.045]
[1744532780517,0.30976187,593.97,593.06,4.045]
[1744532780715,0.30976187,593.96,593.06,4.045]
[1744532780921,0.29331816,593.96,593.06,4.045]
[1744532781120,0.30983732,593.95,593.06,4.045]
[1744532781322,0.30983732,593.94,593.06,4.045]
[1744532781620,0.30983732,593.93,593.06,4.045]
[1744532781821,0.30983732,593.92,593.06,4.045]
[1744532782021,0.30983732,593.91,593.06,4.045]
[1744532782218,0.30983732,593.9,593.06,4.045]
[1744532782422,0.30983732,593.89,593.06,4.045]
[1744532782722,0.30983732,593.88,593.06,4.045]
[1744532782923,1.59390898,593.97,593.06,4.045]
[1744532783222,0.30983732,593.96,593.06,4.045]
[1744532783415,0.30983732,593.95,593.06,4.045]
[1744532783620,0.30983732,593.94,593.06,4.045]
[1744532783817,0.29330456,593.94,593.06,4.045]
[1744532784017,0.30983732,593.93,593.06,4.045]
[1744532784222,0.29330456,593.94,593.06,4.045]
[1744532784418,0.30980548,593.93,593.06,4.045]
[1744532784818,0.30980548,593.93,593.06,4.624]
[1744532788825,0.30980548,593.92,593.06,4.624]
[1744532789027,0.30980548,594.01,593.06,4.624]
[1744532789227,0.30980548,594.0,593.06,4.624]
[1744532789421,0.30980548,593.99,593.06,4.624]
[1744532789728,0.30980548,593.98,593.06,4.624]
[1744532789924,0.30980548,593.97,593.06,4.624]
[1744532790123,0.30980548,593.96,593.06,4.624]
[1744532790328,0.30980548,593.95,593.06,4.624]
[1744532790529,0.30980548,593.94,593.06,4.624]
[1744532790724,0.30980548,593.98,593.06,4.624]
[1744532791629,0.30980548,593.97,593.06,4.624]
[1744532791929,0.30980548,593.96,593.06,4.624]
[1744532794730,0.30980548,594.05,593.06,4.624]
[1744532795430,0.30980548,594.04,593.06,4.624]
[1744532795630,0.30980548,594.03,593.06,4.624]
[1744532795831,0.30980548,594.02,593.06,4.624]
[1744532796033,0.30980548,594.01,593.06,4.624]
[1744532796232,0.30980548,594.0,593.06,4.624]
[1744532796528,0.30980548,593.99,593.06,4.624]
[1744532796732,0.30980548,594.03,593.06,4.624]
[1744532796927,0.30980548,594.02,593.06,4.624]
[1744532797136,0.30980548,594.01,593.06,4.624]
[1744532797430,0.30980548,594.03,593.06,4.624]
[1744532797629,0.30980548,594.02,593.06,4.624]
[1744532797829,0.30980548,594.01,593.06,4.624]
[1744532798033,0.30980548,594.05,593.06,4.624]
[1744532798328,0.30980548,594.04,593.06,4.624]
[1744532798628,0.30980548,594.03,593.06,4.624]
[1744532798832,0.2932712,594.03,593.06,4.624]
[1744532799030,0.30980548,594.02,593.06,4.624]
[1744532800734,0.30980548,594.05,593.06,4.624]
[1744532800929,0.2932749,594.01,593.06,4.624]
[1744532801330,0.30976566,594.0,593.06,4.624]
[1744532803636,0.33666633,594.06,593.06,4.624]
[1744532803831,0.30975838,594.05,593.06,4.624]
[1744532804833,0.2932712,594.04,593.06,4.624]
[1744532805038,0.30975838,594.03,593.06,4.624]
[1744532805233,0.2932712,594.04,593.06,4.624]
[1744532805436,0.30975838,594.03,593.06,4.624]
[1744532806839,0.29327367,594.02,593.06,4.624]
[1744532807138,0.3097588,594.01,593.06,4.624]
[1744532809741,0.3097588,594.05,593.06,4.624]
[1744532809943,0.29326996,594.0,593.06,4.624]
[1744532810137,0.3097588,593.99,593.06,4.624]
[1744532812845,0.3097588,594.05,593.06,4.624]
[1744532813140,0.3097588,594.04,593.06,4.624]
[1744532813341,0.30972935,594.03,593.06,4.624]
[1744532813545,0.30972935,594.05,593.06,4.624]
[1744532813745,0.29325637,594.03,593.06,4.624]
[1744532813944,0.30972935,594.02,593.06,4.624]
[1744532814746,0.29325637,594.03,593.06,4.624]
[1744532814947,0.30972576,594.02,593.06,4.624]
[1744532815849,0.30972576,594.05,593.06,4.624]
[1744532816042,0.30972576,594.04,593.06,4.624]
[1744532816346,0.30972576,594.03,593.06,4.624]
[1744532816547,0.30972576,594.05,593.06,4.624]
[1744532816747,0.29325637,594.02,593.06,4.624]
[1744532816948,0.30972576,594.01,593.06,4.624]
[1744532817351,0.30972576,594.01,593.06,4.961234]
[1744532818044,0.3096993,594.0,593.06,4.961234]
[1744532818246,0.3096993,593.99,593.06,4.961234]
[1744532818446,0.3096993,594.01,593.06,4.961234]
[1744532818645,0.3096993,594.0,593.06,4.961234]
[1744532818845,0.3096993,594.05,593.06,4.961234]
[1744532819045,0.3096993,594.04,593.06,4.961234]
[1744532819246,0.3096993,594.05,593.06,4.961234]
[1744532819550,0.3096993,594.04,593.06,4.961234]
[1744532819852,0.3096993,594.03,593.06,4.961234]
[1744532821651,0.3096993,594.05,593.06,4.961234]
[1744532821847,0.3096993,594.04,593.06,4.961234]
[1744532822054,0.3096993,594.03,593.06,4.961234]
[1744532822353,0.30970314,594.02,593.06,4.961234]
[1744532822553,0.30970314,594.05,593.06,4.961234]
[1744532822749,0.30970314,594.01,593.06,4.961234]
[1744532822953,0.30970314,594.0,593.07,0.33722832]
[1744532823155,0.30970314,594.01,593.07,0.33722832]
[1744532823350,0.30970314,594.0,593.07,0.33722832]
[1744532823653,0.30970314,593.99,593.07,0.33722832]
[1744532823853,0.30970314,594.01,593.07,0.33722832]
[1744532824850,0.30970314,594.05,593.07,0.33722832]
[1744532825051,0.30970314,594.04,593.07,0.33722832]
[1744532825255,0.30970314,594.05,593.07,0.33722832]
[1744532825451,0.30968729,594.04,593.07,0.33722832]
[1744532825653,0.30968729,594.05,593.08,0.76]
[1744532825852,0.29331198,594.04,593.09,0.33721694]
[1744532826051,0.30968729,594.03,593.09,0.33721694]
[1744532826248,0.30968729,594.03,593.1,0.847]
[1744532826554,0.30968729,594.03,593.1,1.89721126]
[1744532826750,0.30968729,594.03,593.11,0.562]
[1744532827250,0.30968729,594.03,593.12,0.631]
[1744532827851,0.30968729,594.05,593.12,0.631]
[1744532828051,0.30968729,594.02,593.12,0.631]
[1744532828252,0.30968729,594.04,593.12,0.631]